[Event "Titled Tuesday Blitz November 01 Late 2022"]
[White "Eljanov, Pavel"]
[Black "Barria Zuniga, Daniel"]
[WhiteFideId "14102951"]
[BlackFideId "3400816"]
[WhiteElo "2601"]
[BlackElo "2414"]
[Result "1-0"]
[Round "03"]
[TimeControl "180+1"]
[Date "2022.11.02"]
[WhiteClock "0:00:13"]
[BlackClock "0:00:07"]

1. e4 {[%clk 0:03:00]}  c5 {[%clk 0:02:57]} 2. Nf3 {[%clk 0:03:01]}  Nc6 {[%clk 0:02:56]} 3. Bb5 {[%clk 0:03:01]}  Na5 {[%clk 0:02:56]} 4. O-O {[%clk 0:02:55]}  a6 {[%clk 0:02:57]} 5. Be2 {[%clk 0:02:55]}  b5 {[%clk 0:02:57]} 6. d4 {[%clk 0:02:49]}  cxd4 {[%clk 0:02:57]} 7. Nxd4 {[%clk 0:02:49]}  Bb7 {[%clk 0:02:58]} 8. Bd3 {[%clk 0:02:46]}  e6 {[%clk 0:02:55]} 9. Qe2 {[%clk 0:02:44]}  Ne7 {[%clk 0:02:54]} 10. c3 {[%clk 0:02:36]}  Ng6 {[%clk 0:02:51]} 11. f4 {[%clk 0:02:28]}  Be7 {[%clk 0:02:50]} 12. Nd2 {[%clk 0:02:21]}  O-O {[%clk 0:02:49]} 13. N2f3 {[%clk 0:02:21]}  Qc7 {[%clk 0:02:42]} 14. g3 {[%clk 0:02:05]}  Rae8 {[%clk 0:02:33]} 15. h4 {[%clk 0:01:48]}  f5 {[%clk 0:02:21]} 16. exf5 {[%clk 0:01:39]}  exf5 {[%clk 0:02:20]} 17. h5 {[%clk 0:01:39]}  Nh8 {[%clk 0:02:15]} 18. Re1 {[%clk 0:01:31]}  g6 {[%clk 0:02:10]} 19. b4 {[%clk 0:01:10]}  Nc4 {[%clk 0:02:00]} 20. Bxc4+ {[%clk 0:01:06]}  bxc4 {[%clk 0:02:01]} 21. Bd2 {[%clk 0:00:52]}  Nf7 {[%clk 0:01:59]} 22. Qh2 {[%clk 0:00:48]}  Kg7 {[%clk 0:01:49]} 23. Kf2 {[%clk 0:00:48]}  Nh6 {[%clk 0:01:48]} 24. Ne5 {[%clk 0:00:40]}  Bf6 {[%clk 0:01:44]} 25. Qh3 {[%clk 0:00:30]}  Bxe5 {[%clk 0:01:39]} 26. fxe5 {[%clk 0:00:30]}  Ng4+ {[%clk 0:01:39]} 27. Kg1 {[%clk 0:00:31]}  Nxe5 {[%clk 0:01:30]} 28. hxg6 {[%clk 0:00:29]}  hxg6 {[%clk 0:00:47]} 29. Bh6+ {[%clk 0:00:29]}  Kf6 {[%clk 0:00:46]} 30. Qh4+ {[%clk 0:00:25]}  Kf7 {[%clk 0:00:44]} 31. Bxf8 {[%clk 0:00:23]}  Kxf8 {[%clk 0:00:36]} 32. Qf6+ {[%clk 0:00:21]}  Kg8 {[%clk 0:00:35]} 33. Re3 {[%clk 0:00:19]}  d6 {[%clk 0:00:25]} 34. Rd1 {[%clk 0:00:18]}  Qe7 {[%clk 0:00:24]} 35. Qxe7 {[%clk 0:00:17]}  Rxe7 {[%clk 0:00:25]} 36. Kf1 {[%clk 0:00:17]}  Kf7 {[%clk 0:00:24]} 37. Ne2 {[%clk 0:00:15]}  Nd3 {[%clk 0:00:16]} 38. Rxe7+ {[%clk 0:00:14]}  Kxe7 {[%clk 0:00:16]} 39. Nf4 {[%clk 0:00:14]}  Nxf4 {[%clk 0:00:15]} 40. gxf4 {[%clk 0:00:14]}  Be4 {[%clk 0:00:15]} 41. Kf2 {[%clk 0:00:14]}  d5 {[%clk 0:00:16]} 42. Ke3 {[%clk 0:00:14]}  Kf6 {[%clk 0:00:17]} 43. Rg1 {[%clk 0:00:13]}  Kg7 {[%clk 0:00:07]} 44. a4 {[%clk 0:00:12]}  Kf6 {[%clk 0:00:07]} 45. b5 {[%clk 0:00:12]}  axb5 {[%clk 0:00:07]} 46. axb5 {[%clk 0:00:13]} 1-0


[Site "https://www.chess.com"]

[Event "Titled Tuesday Blitz November 01 Late 2022"]
[White "Ernst, Sipke"]
[Black "Esipenko, Andrey"]
[WhiteFideId "1004689"]
[BlackFideId "24175439"]
[WhiteElo "2438"]
[BlackElo "2619"]
[Result "0-1"]
[Round "03"]
[TimeControl "180+1"]
[Date "2022.11.02"]
[WhiteClock "0:00:17"]
[BlackClock "0:00:27"]

1. Nf3 {[%clk 0:03:00]}  Nc6 {[%clk 0:02:56]} 2. e4 {[%clk 0:02:59]}  d6 {[%clk 0:02:56]} 3. h3 {[%clk 0:02:58]}  g6 {[%clk 0:02:55]} 4. d4 {[%clk 0:02:56]}  Nf6 {[%clk 0:02:56]} 5. c3 {[%clk 0:02:54]}  Bg7 {[%clk 0:02:55]} 6. Bb5 {[%clk 0:02:50]}  O-O {[%clk 0:02:54]} 7. Nbd2 {[%clk 0:02:44]}  e5 {[%clk 0:02:45]} 8. Bxc6 {[%clk 0:02:43]}  bxc6 {[%clk 0:02:44]} 9. O-O {[%clk 0:02:41]}  Nd7 {[%clk 0:02:20]} 10. b3 {[%clk 0:02:27]}  Re8 {[%clk 0:02:17]} 11. Re1 {[%clk 0:02:27]}  a5 {[%clk 0:02:07]} 12. a3 {[%clk 0:02:07]}  d5 {[%clk 0:01:47]} 13. Bb2 {[%clk 0:02:02]}  dxe4 {[%clk 0:01:45]} 14. Nxe5 {[%clk 0:01:58]}  f5 {[%clk 0:01:45]} 15. Nxc6 {[%clk 0:01:45]}  Qf6 {[%clk 0:01:45]} 16. d5 {[%clk 0:01:39]}  Nc5 {[%clk 0:01:42]} 17. Nc4 {[%clk 0:01:27]}  Bd7 {[%clk 0:01:41]} 18. N6xa5 {[%clk 0:01:15]}  f4 {[%clk 0:01:17]} 19. b4 {[%clk 0:00:55]}  Nd3 {[%clk 0:00:55]} 20. Rxe4 {[%clk 0:00:55]}  Rxe4 {[%clk 0:00:47]} 21. Qxd3 {[%clk 0:00:55]}  Rae8 {[%clk 0:00:44]} 22. Nd2 {[%clk 0:00:55]}  Re2 {[%clk 0:00:40]} 23. Nac4 {[%clk 0:00:38]}  g5 {[%clk 0:00:29]} 24. d6 {[%clk 0:00:32]}  c6 {[%clk 0:00:26]} 25. Nb6 {[%clk 0:00:18]}  Bf5 {[%clk 0:00:26]} 26. Qc4+ {[%clk 0:00:17]}  Kh8 {[%clk 0:00:27]} 27. Qc5 {[%clk 0:00:17]} 0-1


[Site "https://www.chess.com"]

[Event "Titled Tuesday Blitz November 01 Late 2022"]
[White "Ferriz Barrios, Andres"]
[Black "Souleidis, Georgios"]
[WhiteFideId "5104467"]
[BlackFideId "4206827"]
[WhiteElo "2243"]
[BlackElo "2401"]
[Result "1-0"]
[Round "03"]
[TimeControl "180+1"]
[Date "2022.11.02"]
[WhiteClock "0:00:19"]
[BlackClock "0:00:07"]

1. d4 {[%clk 0:03:00]}  Nf6 {[%clk 0:03:00]} 2. Nf3 {[%clk 0:02:58]}  g6 {[%clk 0:03:00]} 3. Nc3 {[%clk 0:02:58]}  d5 {[%clk 0:02:59]} 4. Bf4 {[%clk 0:02:57]}  Bg7 {[%clk 0:02:59]} 5. Qd2 {[%clk 0:02:58]}  O-O {[%clk 0:02:59]} 6. O-O-O {[%clk 0:02:58]}  c5 {[%clk 0:02:50]} 7. e3 {[%clk 0:02:57]}  cxd4 {[%clk 0:02:49]} 8. exd4 {[%clk 0:02:58]}  Nc6 {[%clk 0:02:49]} 9. Ne5 {[%clk 0:02:59]}  Be6 {[%clk 0:02:24]} 10. h4 {[%clk 0:02:57]}  Rc8 {[%clk 0:02:10]} 11. f3 {[%clk 0:02:23]}  Nxe5 {[%clk 0:01:53]} 12. Bxe5 {[%clk 0:02:16]}  Qa5 {[%clk 0:01:48]} 13. Kb1 {[%clk 0:02:03]}  a6 {[%clk 0:01:49]} 14. g4 {[%clk 0:02:02]}  Rc6 {[%clk 0:01:34]} 15. h5 {[%clk 0:02:01]}  Rfc8 {[%clk 0:01:33]} 16. Ne2 {[%clk 0:01:45]}  Qxd2 {[%clk 0:01:29]} 17. Rxd2 {[%clk 0:01:46]}  Bh6 {[%clk 0:01:23]} 18. Nf4 {[%clk 0:01:38]}  Bg5 {[%clk 0:00:51]} 19. hxg6 {[%clk 0:01:36]}  fxg6 {[%clk 0:00:47]} 20. Bd3 {[%clk 0:01:29]}  Nd7 {[%clk 0:00:41]} 21. Nxg6 {[%clk 0:00:34]}  Nxe5 {[%clk 0:00:28]} 22. dxe5 {[%clk 0:00:26]}  hxg6 {[%clk 0:00:25]} 23. Rdh2 {[%clk 0:00:26]}  Kf8 {[%clk 0:00:23]} 24. Bxg6 {[%clk 0:00:25]}  Bg8 {[%clk 0:00:22]} 25. Bf5 {[%clk 0:00:23]}  e6 {[%clk 0:00:20]} 26. Bd3 {[%clk 0:00:22]}  Bf4 {[%clk 0:00:18]} 27. Rh8 {[%clk 0:00:21]}  Bxe5 {[%clk 0:00:18]} 28. R8h5 {[%clk 0:00:20]}  Bg7 {[%clk 0:00:17]} 29. f4 {[%clk 0:00:21]}  Rb6 {[%clk 0:00:13]} 30. f5 {[%clk 0:00:21]}  Rxb2+ {[%clk 0:00:13]} 31. Kc1 {[%clk 0:00:21]}  Rb6 {[%clk 0:00:11]} 32. fxe6 {[%clk 0:00:21]}  Bxe6 {[%clk 0:00:08]} 33. Rf1+ {[%clk 0:00:21]}  Ke7 {[%clk 0:00:08]} 34. Rh7 {[%clk 0:00:21]}  Rg8 {[%clk 0:00:09]} 35. g5 {[%clk 0:00:21]}  Kd8 {[%clk 0:00:08]} 36. Bg6 {[%clk 0:00:19]}  Bb2+ {[%clk 0:00:07]} 37. Kd1 {[%clk 0:00:19]}  Rxg6 {[%clk 0:00:07]} 38. Rf8# {[%clk 0:00:19]} 1-0


[Site "https://www.chess.com"]

[Event "Titled Tuesday Blitz November 01 Late 2022"]
[White "Gasparyan, David"]
[Black "Sailer, Mike"]
[WhiteFideId "13311980"]
[BlackFideId "2012901"]
[WhiteElo "2373"]
[BlackElo "2109"]
[Result "0-1"]
[Round "03"]
[TimeControl "180+1"]
[Date "2022.11.02"]
[WhiteClock "0:00:02"]
[BlackClock "0:00:06"]

1. c4 {[%clk 0:03:00]}  Nf6 {[%clk 0:02:55]} 2. Nc3 {[%clk 0:02:59]}  e6 {[%clk 0:02:53]} 3. g3 {[%clk 0:02:59]}  d5 {[%clk 0:02:52]} 4. b3 {[%clk 0:02:58]}  c6 {[%clk 0:02:45]} 5. Bg2 {[%clk 0:02:56]}  Be7 {[%clk 0:02:40]} 6. Nf3 {[%clk 0:02:43]}  O-O {[%clk 0:02:40]} 7. O-O {[%clk 0:02:43]}  Nbd7 {[%clk 0:02:37]} 8. Bb2 {[%clk 0:02:39]}  a6 {[%clk 0:02:27]} 9. d3 {[%clk 0:02:34]}  b5 {[%clk 0:02:27]} 10. Nd4 {[%clk 0:02:22]}  Bb7 {[%clk 0:02:24]} 11. cxb5 {[%clk 0:02:10]}  cxb5 {[%clk 0:02:20]} 12. e4 {[%clk 0:02:05]}  dxe4 {[%clk 0:02:13]} 13. Nxe4 {[%clk 0:02:04]}  Nxe4 {[%clk 0:02:12]} 14. dxe4 {[%clk 0:02:04]}  Rc8 {[%clk 0:02:03]} 15. Qe2 {[%clk 0:01:56]}  Nf6 {[%clk 0:01:57]} 16. Rad1 {[%clk 0:01:53]}  Qb6 {[%clk 0:01:56]} 17. Kh1 {[%clk 0:01:51]}  Rfd8 {[%clk 0:01:55]} 18. f4 {[%clk 0:01:50]}  Bc5 {[%clk 0:01:40]} 19. Nc2 {[%clk 0:01:39]}  Rxd1 {[%clk 0:01:33]} 20. Rxd1 {[%clk 0:01:35]}  Ne8 {[%clk 0:01:24]} 21. b4 {[%clk 0:01:29]}  Be7 {[%clk 0:01:16]} 22. Bd4 {[%clk 0:01:22]}  Qc6 {[%clk 0:00:57]} 23. Ne3 {[%clk 0:00:51]}  Bxb4 {[%clk 0:00:51]} 24. Qb2 {[%clk 0:00:39]}  Bc5 {[%clk 0:00:44]} 25. e5 {[%clk 0:00:31]}  Qb6 {[%clk 0:00:31]} 26. Bxc5 {[%clk 0:00:26]}  Bxg2+ {[%clk 0:00:29]} 27. Nxg2 {[%clk 0:00:23]}  Qxc5 {[%clk 0:00:29]} 28. h3 {[%clk 0:00:20]}  Kf8 {[%clk 0:00:19]} 29. Kh2 {[%clk 0:00:15]}  g6 {[%clk 0:00:13]} 30. Rd2 {[%clk 0:00:12]}  Kg7 {[%clk 0:00:13]} 31. Re2 {[%clk 0:00:12]}  Nc7 {[%clk 0:00:13]} 32. Ne3 {[%clk 0:00:11]}  Nd5 {[%clk 0:00:13]} 33. Ng4 {[%clk 0:00:11]}  Qc1 {[%clk 0:00:08]} 34. Qb3 {[%clk 0:00:09]}  Qc4 {[%clk 0:00:08]} 35. Qd1 {[%clk 0:00:09]}  Qc1 {[%clk 0:00:07]} 36. Qd3 {[%clk 0:00:09]}  Qf1 {[%clk 0:00:04]} 37. Ne3 {[%clk 0:00:06]}  Qa1 {[%clk 0:00:04]} 38. Nxd5 {[%clk 0:00:06]}  exd5 {[%clk 0:00:04]} 39. Qxd5 {[%clk 0:00:06]}  Rc1 {[%clk 0:00:05]} 40. e6 {[%clk 0:00:05]}  fxe6 {[%clk 0:00:05]} 41. Qd7+ {[%clk 0:00:05]}  Kh6 {[%clk 0:00:05]} 42. Qd2 {[%clk 0:00:02]}  Rh1+ {[%clk 0:00:05]} 43. Kg2 {[%clk 0:00:02]}  Qf1# {[%clk 0:00:06]} 0-1


[Site "https://www.chess.com"]

[Event "Titled Tuesday Blitz November 01 Late 2022"]
[White "Gireman, Ja"]
[Black "Hemam, Moulaye Brahim"]
[WhiteFideId "5043794"]
[BlackFideId "19600054"]
[WhiteElo "2153"]
[BlackElo "2088"]
[Result "0-1"]
[Round "03"]
[TimeControl "180+1"]
[Date "2022.11.02"]
[WhiteClock "0:00:30"]
[BlackClock "0:00:51"]

1. e4 {[%clk 0:03:00]}  d6 {[%clk 0:02:58]} 2. d4 {[%clk 0:03:00]}  Nf6 {[%clk 0:02:58]} 3. Nc3 {[%clk 0:03:00]}  g6 {[%clk 0:02:59]} 4. Bd3 {[%clk 0:03:00]}  Bg7 {[%clk 0:02:59]} 5. h4 {[%clk 0:03:01]}  h6 {[%clk 0:02:58]} 6. Nf3 {[%clk 0:02:56]}  Bg4 {[%clk 0:02:56]} 7. e5 {[%clk 0:02:54]}  Nfd7 {[%clk 0:02:55]} 8. h5 {[%clk 0:02:34]}  gxh5 {[%clk 0:02:45]} 9. e6 {[%clk 0:02:32]}  Bxe6 {[%clk 0:02:44]} 10. Rxh5 {[%clk 0:02:32]}  Nf6 {[%clk 0:02:41]} 11. Rh4 {[%clk 0:02:28]}  c5 {[%clk 0:02:36]} 12. Qe2 {[%clk 0:02:27]}  Nc6 {[%clk 0:02:25]} 13. dxc5 {[%clk 0:02:24]}  dxc5 {[%clk 0:02:24]} 14. Bf4 {[%clk 0:02:22]}  Nd5 {[%clk 0:02:04]} 15. Ne4 {[%clk 0:01:19]}  Nxf4 {[%clk 0:01:51]} 16. Rxf4 {[%clk 0:01:18]}  Bxb2 {[%clk 0:01:50]} 17. Rb1 {[%clk 0:01:18]}  Qa5+ {[%clk 0:01:46]} 18. Kf1 {[%clk 0:01:13]}  Qxa2 {[%clk 0:01:44]} 19. Rxb2 {[%clk 0:01:11]}  Qxb2 {[%clk 0:01:43]} 20. Nxc5 {[%clk 0:01:12]}  Qc1+ {[%clk 0:01:39]} 21. Ne1 {[%clk 0:01:10]}  Qxf4 {[%clk 0:01:38]} 22. Nxe6 {[%clk 0:01:10]}  fxe6 {[%clk 0:01:38]} 23. Qxe6 {[%clk 0:01:10]}  Rf8 {[%clk 0:01:31]} 24. Nf3 {[%clk 0:01:10]}  Qf6 {[%clk 0:01:23]} 25. Qd5 {[%clk 0:01:01]}  Rd8 {[%clk 0:01:19]} 26. Qb5 {[%clk 0:00:58]}  Rd7 {[%clk 0:01:12]} 27. Qb1 {[%clk 0:00:46]}  Nd4 {[%clk 0:01:10]} 28. Be4 {[%clk 0:00:35]}  Nxf3 {[%clk 0:01:07]} 29. Bxf3 {[%clk 0:00:36]}  Qa6+ {[%clk 0:01:06]} 30. Kg1 {[%clk 0:00:35]}  Rxf3 {[%clk 0:01:03]} 31. gxf3 {[%clk 0:00:35]}  Qe2 {[%clk 0:01:00]} 32. Qb3 {[%clk 0:00:35]}  e6 {[%clk 0:00:59]} 33. Kg2 {[%clk 0:00:34]}  Rg7+ {[%clk 0:00:58]} 34. Kh3 {[%clk 0:00:34]}  Qe5 {[%clk 0:00:56]} 35. Qa4+ {[%clk 0:00:31]}  b5 {[%clk 0:00:54]} 36. Qh4 {[%clk 0:00:30]}  Qf5+ {[%clk 0:00:53]} 37. Kh2 {[%clk 0:00:30]}  Qg5 {[%clk 0:00:51]} 0-1


[Site "https://www.chess.com"]

[Event "Titled Tuesday Blitz November 01 Late 2022"]
[White "Goltseva, Ekaterina"]
[Black "Sarana, Alexey"]
[WhiteFideId "24173770"]
[BlackFideId "24133795"]
[WhiteElo "2200"]
[BlackElo "2689"]
[Result "0-1"]
[Round "03"]
[TimeControl "180+1"]
[Date "2022.11.02"]
[WhiteClock "0:00:44"]
[BlackClock "0:02:27"]

1. d4 {[%clk 0:02:28]}  Nf6 {[%clk 0:02:59]} 2. c4 {[%clk 0:02:29]}  e6 {[%clk 0:03:00]} 3. Nc3 {[%clk 0:02:29]}  d5 {[%clk 0:02:59]} 4. cxd5 {[%clk 0:02:29]}  exd5 {[%clk 0:03:00]} 5. Bg5 {[%clk 0:02:28]}  c6 {[%clk 0:03:01]} 6. e3 {[%clk 0:02:28]}  Bf5 {[%clk 0:03:01]} 7. Qf3 {[%clk 0:02:27]}  Bg6 {[%clk 0:03:02]} 8. Bxf6 {[%clk 0:02:28]}  Qxf6 {[%clk 0:03:03]} 9. Qxf6 {[%clk 0:02:28]}  gxf6 {[%clk 0:03:03]} 10. h4 {[%clk 0:02:25]}  h5 {[%clk 0:03:04]} 11. Nge2 {[%clk 0:02:09]}  Bd6 {[%clk 0:03:03]} 12. f3 {[%clk 0:02:02]}  Nd7 {[%clk 0:03:03]} 13. Kf2 {[%clk 0:02:03]}  a5 {[%clk 0:02:59]} 14. a4 {[%clk 0:01:57]}  Nb6 {[%clk 0:02:59]} 15. b3 {[%clk 0:01:57]}  Kd7 {[%clk 0:02:58]} 16. g4 {[%clk 0:01:47]}  Rae8 {[%clk 0:02:55]} 17. Nf4 {[%clk 0:01:40]}  hxg4 {[%clk 0:02:46]} 18. Nxg6 {[%clk 0:01:29]}  g3+ {[%clk 0:02:45]} 19. Kg2 {[%clk 0:01:29]}  fxg6 {[%clk 0:02:46]} 20. Re1 {[%clk 0:01:22]}  f5 {[%clk 0:02:44]} 21. Bd3 {[%clk 0:01:19]}  Bb4 {[%clk 0:02:35]} 22. Nd1 {[%clk 0:00:59]}  Bxe1 {[%clk 0:02:35]} 23. Rxe1 {[%clk 0:01:00]}  Rxh4 {[%clk 0:02:31]} 24. Kxg3 {[%clk 0:01:00]}  Rxd4 {[%clk 0:02:29]} 25. Nf2 {[%clk 0:00:59]}  Rb4 {[%clk 0:02:29]} 26. Bc2 {[%clk 0:00:58]}  f4+ {[%clk 0:02:29]} 27. Kg2 {[%clk 0:00:54]}  Rxe3 {[%clk 0:02:29]} 28. Rh1 {[%clk 0:00:51]}  Re2 {[%clk 0:02:28]} 29. Bd1 {[%clk 0:00:50]}  Rd2 {[%clk 0:02:26]} 30. Rh7+ {[%clk 0:00:49]}  Kc8 {[%clk 0:02:26]} 31. Kf1 {[%clk 0:00:45]}  Rbd4 {[%clk 0:02:26]} 32. Ke1 {[%clk 0:00:45]}  Rxf2 {[%clk 0:02:26]} 33. Kxf2 {[%clk 0:00:44]}  Rxd1 {[%clk 0:02:27]} 0-1


[Site "https://www.chess.com"]

[Event "Titled Tuesday Blitz November 01 Late 2022"]
[White "Grot, Blazej"]
[Black "O`Gorman, Tom"]
[WhiteFideId "21835845"]
[BlackFideId "2508249"]
[WhiteElo "1739"]
[BlackElo "2271"]
[Result "0-1"]
[Round "03"]
[TimeControl "180+1"]
[Date "2022.11.02"]
[WhiteClock "0:00:03"]
[BlackClock "0:00:21"]

1. e4 {[%clk 0:03:00]}  c5 {[%clk 0:02:58]} 2. Nc3 {[%clk 0:03:00]}  d6 {[%clk 0:02:57]} 3. d4 {[%clk 0:03:00]}  cxd4 {[%clk 0:02:58]} 4. Qxd4 {[%clk 0:03:00]}  Nc6 {[%clk 0:02:56]} 5. Qd2 {[%clk 0:03:00]}  g6 {[%clk 0:02:56]} 6. b3 {[%clk 0:03:00]}  Bh6 {[%clk 0:02:56]} 7. f4 {[%clk 0:03:01]}  f5 {[%clk 0:02:57]} 8. Bb2 {[%clk 0:03:00]}  Nf6 {[%clk 0:02:56]} 9. O-O-O {[%clk 0:02:57]}  Qa5 {[%clk 0:02:52]} 10. Kb1 {[%clk 0:02:56]}  Rf8 {[%clk 0:02:50]} 11. Nf3 {[%clk 0:02:43]}  Nxe4 {[%clk 0:02:45]} 12. Qe3 {[%clk 0:02:04]}  Nf6 {[%clk 0:02:32]} 13. h3 {[%clk 0:01:58]}  Bd7 {[%clk 0:02:26]} 14. Rxd6 {[%clk 0:01:19]}  Bxf4 {[%clk 0:02:19]} 15. Qxf4 {[%clk 0:01:08]}  exd6 {[%clk 0:02:18]} 16. Nb5 {[%clk 0:01:08]}  Ne4 {[%clk 0:01:58]} 17. Bd3 {[%clk 0:00:46]}  O-O-O {[%clk 0:01:51]} 18. a4 {[%clk 0:00:20]}  a6 {[%clk 0:01:01]} 19. Nxd6+ {[%clk 0:00:20]}  Nxd6 {[%clk 0:01:01]} 20. Qxd6 {[%clk 0:00:21]}  Qc7 {[%clk 0:01:00]} 21. Qc5 {[%clk 0:00:19]}  Rde8 {[%clk 0:00:54]} 22. Rd1 {[%clk 0:00:18]}  Nd8 {[%clk 0:00:51]} 23. Qb4 {[%clk 0:00:18]}  Bc6 {[%clk 0:00:49]} 24. Qh4 {[%clk 0:00:14]}  Ne6 {[%clk 0:00:47]} 25. Be5 {[%clk 0:00:12]}  Qa5 {[%clk 0:00:44]} 26. Bb2 {[%clk 0:00:09]}  Rd8 {[%clk 0:00:40]} 27. Qxh7 {[%clk 0:00:09]}  Rg8 {[%clk 0:00:36]} 28. Qf7 {[%clk 0:00:08]}  Nc5 {[%clk 0:00:34]} 29. Nd4 {[%clk 0:00:08]}  Nxd3 {[%clk 0:00:34]} 30. Rxd3 {[%clk 0:00:07]}  Bd5 {[%clk 0:00:28]} 31. Qf6 {[%clk 0:00:06]}  Kb8 {[%clk 0:00:26]} 32. Ka2 {[%clk 0:00:04]}  Bxg2 {[%clk 0:00:24]} 33. Ne6 {[%clk 0:00:03]}  Rxd3 {[%clk 0:00:23]} 34. cxd3 {[%clk 0:00:04]}  Bd5 {[%clk 0:00:21]} 35. Be5+ {[%clk 0:00:03]}  Ka7 {[%clk 0:00:20]} 36. Bd4+ {[%clk 0:00:02]}  Ka8 {[%clk 0:00:20]} 37. Qe5 {[%clk 0:00:01]}  Qxa4+ {[%clk 0:00:19]} 38. Kb2 {[%clk 0:00:01]}  Qxb3+ {[%clk 0:00:20]} 39. Kc1 {[%clk 0:00:02]}  Rc8+ {[%clk 0:00:19]} 40. Kd2 {[%clk 0:00:02]}  Qc2+ {[%clk 0:00:19]} 41. Ke3 {[%clk 0:00:03]}  Bxe6 {[%clk 0:00:19]} 42. Qxe6 {[%clk 0:00:03]}  Qc6 {[%clk 0:00:20]} 43. Qe5 {[%clk 0:00:02]}  Re8 {[%clk 0:00:20]} 44. Qxe8+ {[%clk 0:00:03]}  Qxe8+ {[%clk 0:00:21]} 0-1


[Site "https://www.chess.com"]

[Event "Titled Tuesday Blitz November 01 Late 2022"]
[White "Herman, Daniel"]
[Black "Ardila, Oscar Humberto"]
[WhiteFideId "30935008"]
[BlackFideId "4404742"]
[WhiteElo "1897"]
[BlackElo "1898"]
[Result "1/2-1/2"]
[Round "03"]
[TimeControl "180+1"]
[Date "2022.11.02"]
[WhiteClock "0:00:16"]
[BlackClock "0:00:10"]

1. d4 {[%clk 0:03:00]}  Nf6 {[%clk 0:02:59]} 2. Nc3 {[%clk 0:03:00]}  d5 {[%clk 0:02:57]} 3. Bf4 {[%clk 0:02:59]}  e6 {[%clk 0:02:57]} 4. e3 {[%clk 0:02:59]}  Bd6 {[%clk 0:02:57]} 5. Nf3 {[%clk 0:02:56]}  Bxf4 {[%clk 0:02:56]} 6. exf4 {[%clk 0:02:55]}  O-O {[%clk 0:02:56]} 7. Bd3 {[%clk 0:02:55]}  Nbd7 {[%clk 0:02:56]} 8. O-O {[%clk 0:02:44]}  c5 {[%clk 0:02:54]} 9. dxc5 {[%clk 0:02:41]}  Nxc5 {[%clk 0:02:54]} 10. Qe2 {[%clk 0:02:27]}  Qc7 {[%clk 0:02:48]} 11. Ne5 {[%clk 0:02:27]}  a6 {[%clk 0:02:45]} 12. g3 {[%clk 0:02:26]}  b5 {[%clk 0:02:42]} 13. a3 {[%clk 0:02:15]}  Bb7 {[%clk 0:02:41]} 14. Rad1 {[%clk 0:02:11]}  Rac8 {[%clk 0:02:39]} 15. f3 {[%clk 0:02:01]}  Qb6 {[%clk 0:02:33]} 16. Qf2 {[%clk 0:01:54]}  Qc7 {[%clk 0:02:25]} 17. Ne2 {[%clk 0:01:54]}  Rfd8 {[%clk 0:02:20]} 18. Nd4 {[%clk 0:01:53]}  Qb6 {[%clk 0:02:00]} 19. Rfe1 {[%clk 0:01:53]}  Nxd3 {[%clk 0:01:59]} 20. cxd3 {[%clk 0:01:54]}  a5 {[%clk 0:01:51]} 21. Rc1 {[%clk 0:01:53]}  b4 {[%clk 0:01:50]} 22. a4 {[%clk 0:01:49]}  Ba6 {[%clk 0:01:44]} 23. f5 {[%clk 0:01:42]}  Rxc1 {[%clk 0:01:07]} 24. Rxc1 {[%clk 0:01:42]}  Rc8 {[%clk 0:01:07]} 25. Rxc8+ {[%clk 0:01:38]}  Bxc8 {[%clk 0:01:07]} 26. fxe6 {[%clk 0:01:38]}  fxe6 {[%clk 0:01:07]} 27. Ndc6 {[%clk 0:01:31]}  Qxf2+ {[%clk 0:00:35]} 28. Kxf2 {[%clk 0:01:32]}  Bd7 {[%clk 0:00:34]} 29. Nxd7 {[%clk 0:01:28]}  Nxd7 {[%clk 0:00:34]} 30. Nxa5 {[%clk 0:01:29]}  Nc5 {[%clk 0:00:35]} 31. b3 {[%clk 0:01:11]}  Nxd3+ {[%clk 0:00:34]} 32. Ke3 {[%clk 0:01:12]}  Ne5 {[%clk 0:00:34]} 33. Nb7 {[%clk 0:01:08]}  Kf7 {[%clk 0:00:32]} 34. a5 {[%clk 0:01:06]}  Ke7 {[%clk 0:00:30]} 35. a6 {[%clk 0:01:01]}  Nc6 {[%clk 0:00:29]} 36. Na5 {[%clk 0:00:53]}  Na7 {[%clk 0:00:26]} 37. Kd4 {[%clk 0:00:48]}  Kd6 {[%clk 0:00:26]} 38. f4 {[%clk 0:00:49]}  Nb5+ {[%clk 0:00:25]} 39. Kd3 {[%clk 0:00:49]}  Kc5 {[%clk 0:00:23]} 40. Nb7+ {[%clk 0:00:46]}  Kb6 {[%clk 0:00:23]} 41. Nd8 {[%clk 0:00:46]}  Nc7 {[%clk 0:00:17]} 42. a7 {[%clk 0:00:41]}  Kxa7 {[%clk 0:00:17]} 43. Nc6+ {[%clk 0:00:42]}  Kb6 {[%clk 0:00:17]} 44. Nxb4 {[%clk 0:00:42]}  Kc5 {[%clk 0:00:18]} 45. Nc2 {[%clk 0:00:40]}  Nb5 {[%clk 0:00:18]} 46. g4 {[%clk 0:00:37]}  h6 {[%clk 0:00:18]} 47. h4 {[%clk 0:00:37]}  Nd6 {[%clk 0:00:16]} 48. b4+ {[%clk 0:00:35]}  Kb6 {[%clk 0:00:15]} 49. Nd4 {[%clk 0:00:35]}  Ne4 {[%clk 0:00:09]} 50. Nxe6 {[%clk 0:00:25]}  Nf6 {[%clk 0:00:09]} 51. g5 {[%clk 0:00:23]}  hxg5 {[%clk 0:00:10]} 52. fxg5 {[%clk 0:00:24]}  Nh5 {[%clk 0:00:10]} 53. Kd4 {[%clk 0:00:23]}  Kb5 {[%clk 0:00:11]} 54. Kc3 {[%clk 0:00:17]}  g6 {[%clk 0:00:09]} 55. Nd4+ {[%clk 0:00:17]}  Kb6 {[%clk 0:00:09]} 56. Ne6 {[%clk 0:00:18]}  Kc6 {[%clk 0:00:09]} 57. Kd4 {[%clk 0:00:16]}  Kd6 {[%clk 0:00:09]} 58. Nc5 {[%clk 0:00:15]}  Nf4 {[%clk 0:00:09]} 59. Ke3 {[%clk 0:00:15]}  Ng2+ {[%clk 0:00:09]} 60. Kf3 {[%clk 0:00:15]}  Nxh4+ {[%clk 0:00:10]} 61. Kf4 {[%clk 0:00:15]}  Ng2+ {[%clk 0:00:10]} 62. Kf3 {[%clk 0:00:15]}  Nh4+ {[%clk 0:00:10]} 63. Kf4 {[%clk 0:00:15]}  Ng2+ {[%clk 0:00:10]} 64. Kf3 {[%clk 0:00:16]}  Nh4+ {[%clk 0:00:10]} 1/2-1/2


[Site "https://www.chess.com"]